Workbook

Sheet Serviços Preliminares a Adm_RES
A6: Obra: | D6: Perfuração de Poços Tubulares
A8: Local: | D8: Comunidades dispersas situadas na zona rural dos municípios de Afogados da Ingazeira, Afrânio, Águas Belas, Alagoinha, Araripina, Arcoverde, Belém do São Francisco, Betânia, Bodocó, Bom Conselho, Brejinho, Buíque, Cabrobó, Caetés, Calumbi, Carnaíba, Carnaubeira da Penha, Cedro, Custódia, Dormentes, Exu, Flores, Floresta, Granito, Iati, Ibimirim, Iguaracy, Inajá, Ingazeira, Ipubi, Itacuruba, Itaíba, Itapetim, Jatobá, Lagoa Grande, Manari, Mirandiba, Moreilândia, Orocó, Ouricuri, Paranatama, Parnamirim, Pedra, Pesqueira, Petrolândia, Petrolina, Quixaba, Salgueiro, Saloá, Santa Cruz da Venerada, Santa Cruz da Baixa Verde, Santa Filomena, Santa Maria da Boa Vista, Santa Terezinha, São José do Belmonte, São José do Egito, Serra Talhada, Serrita, Sertânia, Solidão, Tabira, Tacaratu, Terra Nova, Trindade, Triunfo, Tupanatinga, Tuparetama, Venturosa e Verdejante, na área de abrangência da 3ª Superintendência Regional da CODEVASF.
E10: Total das Obras | G10: =H14+H22+H26+H29 -> 0
A11: PLANILHA ORÇAMENTÁRIA
A12: codigo | B12: ITEM | C12: COD | D12: DESCRIÇÃO DOS SERVIÇOS | E12: UNID. | F12: QUANT. | G12: PREÇO (R$)
G13: UNITÁRIO C/BDI | H13: TOTAL COM BDI
B14: 1 | D14: Serviços Preliminares | H14: =SUM(H15:H19) -> 0
B15: 1.1 | D15: Mobilização de Equipamentos, Materiais e Pessoal. | E15: un | F15: =69+3 -> 72
B16: 1.2 | D16: Desmobilização de Equipamentos, Materiais e Pessoal. | E16: un | F16: 2
B17: 1.3 | D17: Fornecimento, montagem e conservação de placa de identificação de obra padrão (3m x 2m). | E17: m² | F17: 60
B18: 1.4 | D18: Fornecimento de Veículo 4x4 à fiscalização com seguro, taxas de licenciamento, revisão periódica, manutenção, combustível e pneus. | E18: mês | F18: 12
B19: 1.5 | D19: Administração local da obra. | E19: un | F19: 1
A20: EXECUÇÃO DOS POÇOS
B21: ITEM | D21: DESCRIÇÃO DOS SERVIÇOS | E21: UNID. | F21: QUANT. | G21: TOTAL C/ BDI (R$)
B22: 2 | D22: Poços Cristalinos - Completos | H22: =SUM(G23:G25) -> 0
B23: 2 | D23: Poços Cristalinos profundidade média 60m - PERFURAÇÃO | E23: un | F23: ='Cristalino Completo'!E13+'Cristalino Completo'!F13 -> 400
B24: 4 | D24: Poços Cristalinos - Montagem e Instalação com bomba submersa. | E24: un | F24: ='Cristalino Completo'!E13 -> 180
B25: 5 | D25: Poços Cristalinos - Montagem e Instalação com cata-vento. | E25: un | F25: ='Cristalino Completo'!F13 -> 220
B26: 2 | D26: Poços Cristalinos - APENAS INSTALAÇÃO | H26: =SUM(G27:G28) -> 0
B27: 4 | D27: Poços Cristalinos - Montagem e Instalação com bomba submersa. | E27: un | F27: ='Poço Só Instalação'!E13 -> 100
B28: 5 | D28: Poços Cristalinos - Montagem e Instalação com cata-vento. | E28: un | F28: ='Poço Só Instalação'!F13 -> 100
B29: 2 | D29: Poços SEDIMENTARES | H29: =SUM(G30:G31) -> 0
B30: 3 | D30: Poços Sedimentares profundidade média 180m | E30: un | F30: 6
B31: 6 | D31: Poços Sedimentares - Montagem e Instalação | E31: un | F31: 6

Sheet Poços Sedimentares
A6: Obra: | D6: Perfuração de Poços Tubulares
A8: Local: | D8: Comunidades dispersas situadas na zona rural dos municípios de Afogados da Ingazeira, Afrânio, Águas Belas, Alagoinha, Araripina, Arcoverde, Belém do São Francisco, Betânia, Bodocó, Bom Conselho, Brejinho, Buíque, Cabrobó, Caetés, Calumbi, Carnaíba, Carnaubeira da Penha, Cedro, Custódia, Dormentes, Exu, Flores, Floresta, Granito, Iati, Ibimirim, Iguaracy, Inajá, Ingazeira, Ipubi, Itacuruba, Itaíba, Itapetim, Jatobá, Lagoa Grande, Manari, Mirandiba, Moreilândia, Orocó, Ouricuri, Paranatama, Parnamirim, Pedra, Pesqueira, Petrolândia, Petrolina, Quixaba, Salgueiro, Saloá, Santa Cruz da Venerada, Santa Cruz da Baixa Verde, Santa Filomena, Santa Maria da Boa Vista, Santa Terezinha, São José do Belmonte, São José do Egito, Serra Talhada, Serrita, Sertânia, Solidão, Tabira, Tacaratu, Terra Nova, Trindade, Triunfo, Tupanatinga, Tuparetama, Venturosa e Verdejante, na área de abrangência da 3ª Superintendência Regional da CODEVASF.
A10: Total de poços a perfurar | E10: Cristalino | G10: Sedimentar
E11: 0 | G11: 6
A12: Total de poços a instalar | E12: Bomba | F12: Cata-vento | G12: Bomba
E13: 0 | F13: 0 | G13: 6
A14: Data Base Utilizada para Insumos: SINAPI Junho/2017 Não Desonerado; ORSE Maio/2017; Cotações | E14: Valor Perfuração (R$) | G14: =SUM(H22:H43) -> 0 | I14: =G14/G11 -> 0 | J14: =G14 -> 0
E15: Instalação Motobomba (R$) | G15: =SUM(H45:H66) -> 0 | I15: =G15/G13 -> 0 | J15: =G15 -> 0
E16: Instalação Catavento (R$)
E17: Total das Obras | G17: =SUM(G14:H16) -> 0
A18: PLANILHA ORÇAMENTÁRIA
A19: codigo | B19: ITEM | C19: COD | D19: DESCRIÇÃO DOS SERVIÇOS | E19: UNID. | F19: QUANT. | G19: PREÇO (R$)
G20: UNITÁRIO C/BDI | H20: TOTAL COM BDI
B21: 3 | D21: Poços Sedimentares profundidade média 180m
A22: composição | B22: 3.1 | D22: Locação, acompanhamento da perfuração, teste de vazão e da instalação do poço, por profissional habilitado. | E22: un | F22: =G11 -> 6
A23: composição | B23: 3.2 | D23: Limpeza do terreno - Raspagem e limpeza manual do terreno com destocamento de arvore até 15cm. | E23: m² | F23: =G11*300 -> 1800
A24: composição | B24: 3.3 | D24: Montagem, instalação e desinstalação de sonda. | E24: un | F24: =G11 -> 6
A25: composição | B25: 3.4 | D25: Perfuração de Poço em rocha sedimentar com diâmetro de 16". | E25: m | F25: =G11*20 -> 120
A26: composição | B26: 3.5 | D26: Perfuração de Poço em rocha sedimentar com diâmetro de 12 1/4". | E26: m | F26: =G11*160 -> 960
A27: composição | B27: 3.6 | D27: Fornecimento e instalação de Cap fêmea de ponta de tubo de 6", para impedir contaminação do poço, inclusive anel de vedação e borracha. | E27: un | F27: =G11 -> 6
A28: composição | B28: 3.7 | D28: Fornecimento e instalação de Cap PVC geomecânico REF. em DN 6" para vedação do fundo do filtro, inclusive anel de vedação e borracha. | E28: un | F28: =G11 -> 6
A29: composição | B29: 3.8 | D29: Fornecimento e instalação de Cap PVC geomecânico STD. em DN 6" para vedação do fundo do filtro, inclusive anel de vedação e borracha. | E29: un | F29: 10
A30: composição | B30: 3.9 | D30: Fornecimento e instalação de Revestimento do Poço em Tubo PVC Geomecânico STD em DN de 6" com luvas e rosca (Para poços de até no máximo 150m de profundidade). | E30: m | F30: =G11*150 -> 900
A31: composição | B31: 3.10 | D31: Fornecimento e instalação de Revestimento do Poço em Tubo PVC Geomecânico REF em DN de 6" com luvas e rosca (Para poços de 150 m a 300 m de profundidade). | E31: m | F31: =30*G11 -> 180
A32: composição | B32: 3.11 | D32: Fornecimento e aplicação de nata de cimento para cimentação anelar e isolamento de aquíferos e proteção sanitária em conformidade com a NBR 12244. | E32: m³ | F32: =1300*3.1416*(0.1556*0.1556-0.0762*0.0762)+F25*3.1416*(0.2032*0.2032-0.0762*0.0762) -> 88.54
A33: composição | B33: 3.12 | D33: Fornecimento e instalação de Filtro em Tubo de PVC Geomecânico REF. em DN de 6" com luva e rosca com aberturas de 0,5mm. (Para poços de 150m até no máximo 300m de profundidade). | E33: m | F33: =G11*30 -> 180
A34: composição | B34: 3.13 | D34: Fornecimento e instalação de Filtro em Tubo de PVC Geomecânico STD. em DN de 6" com luva e rosca com aberturas de 0,5mm. (Para poços até 150m de profundidade). | E34: m | F34: 300
A35: composição | B35: 3.14 | D35: Fornecimento e instalação de Pré-filtro preenchido com material quartzoso previamente lavado, peneirado e selecionado com granulometria variável de 2 - 4 mm em conformidade com NBR 12244. | E35: m³ | F35: =F33*3.1416*(0.1556*0.1556-0.0762*0.0762) -> 10.41
A36: composição | B36: 3.15 | D36: Realização de limpeza do poço, realizado mediante a utilização de compressor de ar pelo método de fluxo e refluxo, incluindo operação e a instalação de compressor de ar, em conformidade com a NBR 12244. | E36: un | F36: =G11 -> 6
A37: composição | B37: 3.16 | D37: Realização de desenvolvimento e estimulação do poço, realizado mediante a utilização de compressor de ar pelo método de fluxo e refluxo, incluindo operação e a instalação de compressor de ar, em conformidade com a NBR12244. | E37: un | F37: =G11 -> 6
A38: composição | B38: 3.17 | D38: Realização de teste de vazão e de bombeamento do poço, incluindo operação e Instalação motor-bomba submersa e grupo gerador elétrico, em conformidade com a NBR 12244. | E38: un | F38: =G11 -> 6
A39: composição | B39: 3.18 | D39: Realização de Perfilagem geofísica do poço em conformidade com a NBR 12244. | E39: un | F39: =G11 -> 6
A40: composição | B40: 3.19 | D40: Realização de desinfecção do poço, incluindo material de limpeza, instalação e desinstalação de compressor, combustível e operador. | E40: un | F40: =G11 -> 6
A41: composição | B41: 3.20 | D41: Realização de Análise Físico-Química e bacteriológica da água em conformidade com a NR 518, incluindo a coleta, taxas e transporte. | E41: un | F41: =G11 -> 6
A42: composição | B42: 3.21 | D42: Obtenção junto aos órgãos competente da Outorga de funcionamento e uso de recursos hídricos - CPRH/PE. | E42: un | F42: =G11 -> 6
A43: composição | B43: 3.22 | D43: Construção de laje de proteção sanitária em concreto armado para qualquer tipo de estrutura, inclusive forma e ferragens, nas dimensões-1,0m x 1,0m x 0,15m, com declividade de 2% em relação ao centro do poço para as bordas em conformidade com a NBR 12244. | E43: m³ | F43: =G11*0.15 -> 0.9
B44: 6 | D44: Poços Sedimentares - Montagem e Instalação | J44: =H44/10 -> 0
A45: composição | B45: 6.3 | D45: Fornecimento e assentamento de tubos e conexões em PVC tipo Edutor, azul, Diâmetro Nominal de 50 mm (interligação do poço a caixa do reservatório). | E45: m | F45: =G11*150 -> 900
A46: composição | B46: 6.4 | D46: Fornecimento, montagem e instalação de poço tubular com conjunto de motor-bomba submersa, monofásico, 220 volts, 60 Hz, com motor lubrificado e refrigerado a água, acoplado a bombeador multiestágio com válvula de retenção incorporada e reatores em bronze, diâmetro da tubulação 2", capaz de vencer uma altura manométrica mínima de 200 mca com vazão média de 15 m³/h, incluindo quadro de comando compatível com o modelo de bomba instalada e cabo, flexível, trifásico, isolado, tensão de 600V/1000V em conformidade com a NBR 7288 e diâmetro compatível com a bomba. | E46: un | F46: =G11 -> 6
A47: composição | B47: 6.5 | D47: Locação de rede de adutora para interligação do poço ao reservatório e deste ao bebedouro. | E47: m | F47: =G11*150 -> 900
A48: composição | B48: 6.6 | D48: Fornecimento e assentamento de tubos e conexões em PVC, marrom, diâmetros de 32mm, soldável. | E48: m | F48: =G11*200 -> 1200
A49: composição | B49: 6.7 | D49: Escavação manual de vala de fundação para instalação de tubulação de adutora em material de 1ª e 2ª categoria, com dimensões de 0,40 m (prof.) x 0,30 m (larg.), incluindo regularização manual do fundo da vala (poço ao reservatório). | E49: m³ | F49: =F45*0.4*0.3 -> 108
A50: composição | B50: 6.8 | D50: Aterro manual de valas de fundação com 0,40 m de profundidade, 0,30 m de largura, com avaliação visual da compactação (poço ao reservatório). | E50: m³ | F50: =F49-(3.1416*0.025*0.025*150*G11) -> 106.23
A51: composição | B51: 6.9 | D51: Fornecimento e instalação de caixa d'água de fibra de 5m³, sobre base de concreto armado, incluído tubulação de dreno, lavagem e ladrão. | E51: un | F51: =G11 -> 6
A52: composição | B52: 6.10 | D52: Fornecimento e montagem de cerca de proteção construída com mourões de concreto armado (H=2,5 m), com ponta virada e com 11 fios de arame farpado, incluindo chumbamento e arame de fixação. | E52: m | F52: =G11*14.7 -> 88.2
A53: composição | B53: 6.11 | D53: Fornecimento, montagem e instalação de portão de ferro tubular, tela em aço galvanizado, dobradiças e fechadura para passagem de pedestre, medindo 1,80m x 1,10m, incluindo mourão de sustentação. | E53: un | F53: =G11 -> 6
A54: composição | B54: 6.12 | D54: Escavação manual de vala de fundação em material de 1 e 2ª categoria, com dimensões de 0,40 m (prof.) x 0,30 m (larg.), incluindo regularização manual do fundo da vala (reservatório ao bebedouro). | E54: m³ | F54: =G11*200*0.4*0.3 -> 144
A55: composição | B55: 6.13 | D55: Aterro manual de valas de fundação com 0,40 m de profundidade, 0,30 m de largura, com avaliação visual da compactação (reservatório ao bebedouro). | E55: m³ | F55: =F54-(3.1416*0.016*0.016*200*G11) -> 143.03
A56: composição | B56: 6.14 | D56: Execução de bebedouro em concreto armado, incluindo a instalação hidráulica. | E56: un | F56: =G11 -> 6
A57: composição | B57: 6.15 | D57: Execução de base de sustentação do reservatório em concreto armado, diâmetro de 2,06 m e altura de 1,10 m, conforme projeto. | E57: un | F57: =G11 -> 6
B58: 6.1. | D58: Poços Sedimentares - Instalações eletricas
A59: composição | B59: 6.1.1E | D59: Elaboração de projeto de rede elétrica de baixa tensão, incluído aprovação junto a concessionária. | E59: m | F59: =G13*200 -> 1200
A60: composição | B60: 6.1.2E | D60: Execução de rede elétrica de baixa tensão - cabo de alumínio de 25 mm² (3+1). | E60: m | F60: =G13*200 -> 1200
A61: composição | B61: 6.1.3E | D61: Poste de Concreto (fornecimento e instalação) | E61: un | F61: =G13*5 -> 30
A62: composição | B62: 6.1.4E | D62: Estrutura IM-A (fornecimento e instalação) | E62: un | F62: =G13*3 -> 18
A63: composição | B63: 6.1.5E | D63: Estrutura IM-1 (fornecimento e instalação) | F63: =G13*2 -> 12
A64: composição | B64: 6.1.6E | D64: Fornecimento e montagem de quadro de medição no padrão CELPE para 3 ou 4 fios, inclusive haste de aterramento, condutores, conectores, eletroduto, disjuntor, caixa para disjuntor, bucha, arruela e tubo. | E64: un | F64: =G13 -> 6
A65: composição | B65: 6.1.7E | D65: Abrigo de proteção em concreto armado para quadro de comando de bomba. | E65: un | F65: =G13 -> 6
A66: composição | B66: 6.1.8E | D66: Montagem de sistema de aterramento com haste de aterramento tipo Copperwelder, conector e cabo de cobre nu com bitola de 25 mm² para proteção de sistema elétrico em conformidade com a NBR 5410. | E66: un | F66: =G11 -> 6
J70: cristalino
J71: bomba | L71: catavento
J72: =SUM(#REF!+#REF!+#REF!) ->  | L72: =SUM(#REF!+#REF!+#REF!) -> 
J73: perfuração | K73: instalação | L73: perfuração | M73: instalação
J74: =J72-#REF! ->  | K74: =J72-J74 ->  | L74: =L72-#REF! ->  | M74: =L72-L74 -> 
J76: sedimentar | K76: Perfuração | L76: =J77-J44 -> 
J77: =#REF!+J20+J44 ->  | K77: Instalação | L77: =J44 -> 0
J78: geral
J79: =G16/(E11+G11) -> 0

Sheet Poço Só Instalação
A6: Obra: | D6: Perfuração de Poços Tubulares
A8: Local: | D8: Comunidades dispersas situadas na zona rural dos municípios de Afogados da Ingazeira, Afrânio, Águas Belas, Alagoinha, Araripina, Arcoverde, Belém do São Francisco, Betânia, Bodocó, Bom Conselho, Brejinho, Buíque, Cabrobó, Caetés, Calumbi, Carnaíba, Carnaubeira da Penha, Cedro, Custódia, Dormentes, Exu, Flores, Floresta, Granito, Iati, Ibimirim, Iguaracy, Inajá, Ingazeira, Ipubi, Itacuruba, Itaíba, Itapetim, Jatobá, Lagoa Grande, Manari, Mirandiba, Moreilândia, Orocó, Ouricuri, Paranatama, Parnamirim, Pedra, Pesqueira, Petrolândia, Petrolina, Quixaba, Salgueiro, Saloá, Santa Cruz da Venerada, Santa Cruz da Baixa Verde, Santa Filomena, Santa Maria da Boa Vista, Santa Terezinha, São José do Belmonte, São José do Egito, Serra Talhada, Serrita, Sertânia, Solidão, Tabira, Tacaratu, Terra Nova, Trindade, Triunfo, Tupanatinga, Tuparetama, Venturosa e Verdejante, na área de abrangência da 3ª Superintendência Regional da CODEVASF.
A10: Total de poços a perfurar | E10: Cristalino | G10: Sedimentar
E11: 0 | G11: 0
A12: Total de poços a instalar | E12: Bomba | F12: Cata-vento | G12: Bomba
E13: 100 | F13: 100 | G13: 0
A14: Data Base Utilizada para Insumos: SINAPI Junho/2017 Não Desonerado; ORSE Maio/2017; Cotações | E14: Valor Perfuração (R$) | G14: 0
E15: Instalação Motobomba (R$) | G15: =SUM(H22:H44) -> 0
E16: Instalação Catavento (R$) | G16: =SUM(H46:H60) -> 0
E17: Total das Obras | G17: =SUM(G14:H16) -> 0
A18: PLANILHA ORÇAMENTÁRIA
A19: codigo | B19: ITEM | C19: COD | D19: DESCRIÇÃO DOS SERVIÇOS | E19: UNID. | F19: QUANT. | G19: PREÇO (R$)
G20: UNITÁRIO C/BDI | H20: TOTAL COM BDI
D21: Poços Cristalinos - Montagem e Instalação com bomba submersa.
A22: composição | B22: 2.14 | D22: Obtenção junto aos órgãos competente da Outorga de funcionamento e uso de recursos hídricos - CPRH/PE. | E22: un | F22: =E13 -> 100
A23: composição | B23: 2.15 | D23: Construção de laje de proteção sanitária em concreto armado para qualquer tipo de estrutura, FCK = 15 Mpa, virado em betoneira na obra, incluindo aplicação e adensamento, forma, escoramento e ferragens, nas dimensões-1,0m x 1,0m x 0,15m, com declividade de 2% em relação ao centro do poço para as bordas, em conformidade com a NBR 12244. | E23: m³ | F23: =(E13)*0.15 -> 15
A24: composição | B24: 4.1 | D24: Fornecimento e assentamento de tubos e conexões em PVC tipo Edutor, azul, Diâmetro Nominal de 50 mm (interligação do poço à caixa do reservatório). | E24: m | F24: =E13*30 -> 3000
A25: composição | B25: 4.2 | D25: Fornecimento, montagem e instalação de poço profundo tubular com diâmetro de 6", incluindo conjunto motor-bomba submersa e peças, diâmetro da tubulação de recalque de até 2", profundidade da bomba entre 40 m e 56 m, inclusive rede elétrica do quadro de comando à bomba. | E25: un | F25: =E13 -> 100
A26: composição | B26: 4.3 | D26: Limpeza do terreno - Raspagem e limpeza manual do terreno com destocamento de arvore até 15cm (área de bebedouro e do reservatório). | E26: m² | F26: =(E13)*10.25 -> 1025
A27: composição | B27: 4.4 | D27: Escavação manual de vala de fundação em material de 1 e 2ª categoria, com dimensões de 0,40 m (prof.) x 0,30 m (larg.), incluindo regularização manual do fundo da vala (reservatório ao bebedouro). | E27: m³ | F27: =E13*20*0.4*0.3 -> 240
A28: composição | B28: 4.5 | D28: Aterro manual de valas de fundação com 0,40 m de profundidade, 0,30 m largura, com avaliação visual da compactação (reservatório ao bebedouro). | E28: m³ | F28: =F27-(3.1416*0.016*0.016*20*E3) -> 240
A29: composição | B29: 4.6 | D29: Escavação manual de vala de fundação para instalação de tubulação de adutora em material de 1ª e 2ª categoria, com dimensões de 0,40 m (prof.) x 0,30 m (larg.), incluindo regularização manual do fundo da vala (poço ao reservatório). | E29: m³ | F29: =F24*0.4*0.3 -> 360
A30: composição | B30: 4.7 | D30: Aterro manual de valas de fundação com 0,40 m de profundidade, 0,30 m de largura, com avaliação visual da compactação (poço ao reservatório). | E30: m³ | F30: =F29-(3.1416*0.025*0.025*30*E13) -> 354.11
A31: composição | B31: 4.8 | D31: Fornecimento e assentamento de tubos e conexões em PVC, marrom, diâmetros de 32mm, soldável. | E31: m | F31: =E13*20 -> 2000
A32: composição | B32: 4.9 | D32: Fornecimento e instalação de caixa d'água de fibra de 5m³, sobre base de concreto armado, incluído tubulação de dreno, lavagem e ladrão. | E32: un | F32: =E13 -> 100
A33: composição | B33: 4.10 | D33: Fornecimento e montagem de cerca de proteção construída com mourões de concreto armado (H=2,5 m), com ponta virada e com 11 fios de arame farpado, incluindo chumbamento e arame de fixação. | E33: m | F33: =E13*14.7 -> 1470
A34: composição | B34: 4.11 | D34: Fornecimento, montagem e instalação de portão de ferro tubular, tela em aço galvanizado, dobradiças e fechadura para passagem de pedestre, medindo 1,80m x 1,10m, incluindo mourão de sustentação. | E34: un | F34: =E13 -> 100
A35: composição | B35: 4.12 | D35: Execução de bebedouro em concreto armado, incluindo a instalação hidráulica. | E35: un | F35: =E13 -> 100
A36: composição | B36: 4.13 | D36: Execução de base de sustentação do reservatório em concreto armado, diâmetro de 2,06 m e altura de 1,10 m, conforme projeto. | E36: un | F36: =E13 -> 100
D37: Instalações Eletricas - Poços Cristalinos
A38: composição | B38: 4.1.1 | D38: Elaboração de projeto de rede elétrica de baixa tensão, incluído aprovação junto a concessionária. | E38: m | F38: =E13*200 -> 20000
A39: composição | B39: 4.1.2 | D39: Execução de rede elétrica de baixa tensão - cabo de alumínio de 25 mm² (3+1). | E39: m | F39: =E13*200 -> 20000
A40: composição | B40: 4.1.3 | D40: Poste de Concreto (fornecimento e instalação) | E40: un | F40: =E13*5 -> 500
A41: composição | B41: 4.1.4 | D41: Estrutura IM-A (fornecimento e instalação) | E41: un | F41: =E13*3 -> 300
A42: composição | B42: 4.1.5 | D42: Estrutura IM-1 (fornecimento e instalação) | F42: =E13*2 -> 200
A43: composição | B43: 4.1.6 | D43: Fornecimento e montagem de quadro de medição no padrão CELPE para 3 ou 4 fios, inclusive haste de aterramento, condutores, conectores, eletroduto, disjuntor, caixa para disjuntor, bucha, arruela e tubo. | E43: un | F43: =E13 -> 100
A44: composição | B44: 4.1.7 | D44: Abrigo de proteção em concreto armado para quadro de comando de bomba. | E44: un | F44: =E13 -> 100
D45: Poços Cristalinos - Montagem e Instalação com cata-vento. | J45: =H45/75 -> 0
A46: composição | B46: 2.14 | D46: Obtenção junto aos órgãos competente da Outorga de funcionamento e uso de recursos hídricos - CPRH/PE. | E46: un | F46: =F13 -> 100
A47: composição | B47: 2.15 | D47: Construção de laje de proteção sanitária em concreto armado para qualquer tipo de estrutura, FCK = 15 Mpa, virado em betoneira na obra, incluindo aplicação e adensamento, forma, escoramento e ferragens, nas dimensões-1,0m x 1,0m x 0,15m, com declividade de 2% em relação ao centro do poço para as bordas, em conformidade com a NBR 12244. | E47: m³ | F47: =(F13)*0.15 -> 15
A48: composição | B48: 5.1 | D48: Fornecimento e assentamento de tubos e conexões em PVC tipo Edutor, azul, Diâmetro Nominal de 50 mm (interligação do poço à caixa do reservatório). | E48: m | F48: =F13*30 -> 3000
A49: composição | B49: 5.2 | D49: Fornecimento, montagem e instalação de poço profundo tubular com diâmetro de 6", com cata-vento de base triangular, diâmetro da tubulação 1 1/4", profundidade do injetor entre 40m e 56m, incluindo fixação da torre sobre base de concreto no traço 1:2:3. | E49: un | F49: =F13 -> 100
A50: composição | B50: 5.3 | D50: Limpeza do terreno - Raspagem e limpeza manual do terreno com destocamento de arvore até 15cm (área de bebedouro e do reservatório). | E50: m² | F50: =(F13)*10.25 -> 1025
A51: composição | B51: 5.4 | D51: Escavação manual de vala de fundação em material de 1 e 2ª categoria, com dimensões de 0,40 m (prof.) x 0,30 m (larg.), incluindo regularização manual do fundo da vala (reservatório ao bebedouro). | E51: m³ | F51: =F13*20*0.4*0.3 -> 240
A52: composição | B52: 5.5 | D52: Aterro manual de valas de fundação com 0,40 m de profundidade, 0,30 m largura, com avaliação visual da compactação (reservatório ao bebedouro). | E52: m³ | F52: =F51-(3.1416*0.016*0.016*20*F13) -> 238.39
A53: composição | B53: 5.6 | D53: Escavação manual de vala de fundação para instalação de tubulação de adutora em material de 1ª e 2ª categoria, com dimensões de 0,40 m (prof.) x 0,30 m (larg.), incluindo regularização manual do fundo da vala (poço ao reservatório). | E53: m³ | F53: =F48*0.4*0.3 -> 360
A54: composição | B54: 5.7 | D54: Aterro manual de valas de fundação com 0,40 m de profundidade, 0,30 m de largura, com avaliação visual da compactação (poço ao reservatório). | E54: m³ | F54: =F53-(3.1416*0.025*0.025*30*F13) -> 354.11
A55: composição | B55: 5.8 | D55: Fornecimento e assentamento de tubos e conexões em PVC, marrom, diâmetros de 32mm, soldável. | E55: m | F55: =F13*20 -> 2000
A56: composição | B56: 5.9 | D56: Fornecimento e instalação de caixa d'água de fibra de 5m³, sobre base de concreto armado, incluído tubulação de dreno, lavagem e ladrão. | E56: un | F56: =F13 -> 100
A57: composição | B57: 5.10 | D57: Fornecimento e montagem de cerca de proteção construída com mourões de concreto armado (H=2,5 m), com ponta virada e com 11 fios de arame farpado, incluindo chumbamento e arame de fixação. | E57: m | F57: =F13*14.7 -> 1470
A58: composição | B58: 5.11 | D58: Fornecimento, montagem e instalação de portão de ferro tubular, tela em aço galvanizado, dobradiças e fechadura para passagem de pedestre, medindo 1,80m x 1,10m, incluindo mourão de sustentação. | E58: un | F58: =F13 -> 100
A59: composição | B59: 5.12 | D59: Execução de bebedouro em concreto armado, incluindo a instalação hidráulica. | E59: un | F59: =F13 -> 100
A60: composição | B60: 5.13 | D60: Execução de base de sustentação do reservatório em concreto armado, diâmetro de 2,06 m e altura de 1,10 m, conforme projeto. | E60: un | F60: =F13 -> 100

Sheet Cristalino Completo
A6: Obra: | D6: Perfuração de Poços Tubulares
A8: Local: | D8: Comunidades dispersas situadas na zona rural dos municípios de Afogados da Ingazeira, Afrânio, Águas Belas, Alagoinha, Araripina, Arcoverde, Belém do São Francisco, Betânia, Bodocó, Bom Conselho, Brejinho, Buíque, Cabrobó, Caetés, Calumbi, Carnaíba, Carnaubeira da Penha, Cedro, Custódia, Dormentes, Exu, Flores, Floresta, Granito, Iati, Ibimirim, Iguaracy, Inajá, Ingazeira, Ipubi, Itacuruba, Itaíba, Itapetim, Jatobá, Lagoa Grande, Manari, Mirandiba, Moreilândia, Orocó, Ouricuri, Paranatama, Parnamirim, Pedra, Pesqueira, Petrolândia, Petrolina, Quixaba, Salgueiro, Saloá, Santa Cruz da Venerada, Santa Cruz da Baixa Verde, Santa Filomena, Santa Maria da Boa Vista, Santa Terezinha, São José do Belmonte, São José do Egito, Serra Talhada, Serrita, Sertânia, Solidão, Tabira, Tacaratu, Terra Nova, Trindade, Triunfo, Tupanatinga, Tuparetama, Venturosa e Verdejante, na área de abrangência da 3ª Superintendência Regional da CODEVASF.
A10: Total de poços a perfurar | E10: Cristalino | G10: Sedimentar
E11: =E13+F13 -> 400 | G11: 0
A12: Total de poços a instalar | E12: Bomba | F12: Cata-vento | G12: Bomba
E13: 180 | F13: 220 | G13: 0
A14: Data Base Utilizada para Insumos: SINAPI Junho/2017 Não Desonerado; ORSE Maio/2017; Cotações | E14: Valor Perfuração (R$) | G14: =ROUND((SUM(H22:H40)),2) -> 0 | I14: =G14/E11 -> 0 | K14: =G14 -> 0
E15: Instalação Motobomba (R$) | G15: =SUM(H42:H62) -> 0 | I15: =G15/E13 -> 0 | J15: =I14+I15 -> 0 | K15: =G15 -> 0
E16: Instalação Catavento (R$) | G16: =SUM(H64:H76) -> 0 | I16: =G16/F13 -> 0 | J16: =I16+I14 -> 0 | K16: =G16 -> 0
E17: Total das Obras | G17: =SUM(G14:H16) -> 0 | I17: =G17 -> 0
A18: PLANILHA ORÇAMENTÁRIA
A19: codigo | B19: ITEM | C19: COD | D19: DESCRIÇÃO DOS SERVIÇOS | E19: UNID. | F19: QUANT. | G19: PREÇO (R$)
G20: UNITÁRIO C/BDI | H20: TOTAL COM BDI
B21: 2 | D21: Poços Cristalinos profundidade média 60m - PERFURAÇÃO | J21: =H21/150 -> 0
A22: composição | B22: 2.1 | D22: Locação, acompanhamento da perfuração, teste de vazão e da instalação do poço, por profissional habilitado. | E22: un | F22: =E11 -> 400 | J22: 2.1 | K22: 735.74 | L22: Locação, acompanhamento da perfuração, teste de vazão e da instalação do poço, por profissional habilitado. | M22: un | N22: 150 | O22: 735.74 | P22: 110361
A23: composição | B23: 2.2 | D23: Limpeza do terreno - Raspagem e limpeza manual do terreno com destocamento de arvore até 15cm | E23: m² | F23: =E11*4 -> 1600 | J23: 2.2 | K23: 2.98 | L23: Limpeza do terreno - Raspagem e limpeza manual do terreno com destocamento de arvore até 15cm | M23: m² | N23: 600 | O23: 2.98 | P23: 1788
A24: composição | B24: 2.3 | D24: Montagem, instalação e desinstalação de sonda. | E24: un | F24: =E11 -> 400 | J24: 2.3 | K24: 232.67 | L24: Montagem, instalação e desinstalação de sonda. | M24: un | N24: 150 | O24: 232.67 | P24: 34900.5
A25: composição | B25: 2.4 | D25: Perfuração de poço com diâmetro mínimo de 8" (solo decomposto). | E25: m | F25: =E11*10 -> 4000 | J25: 2.4 | K25: 120.96 | L25: Perfuração de poço com diâmetro mínimo de 8" (solo decomposto). | M25: m | N25: 1500 | O25: 120.96 | P25: 181440
A26: composição | B26: 2.5 | D26: Perfuração de poço com diâmetro mínimo de 6" (rocha cristalina). | E26: m | F26: =E11*50 -> 20000 | J26: 2.5 | K26: 104.92 | L26: Perfuração de poço com diâmetro mínimo de 6" (rocha cristalina). | M26: m | N26: 7500 | O26: 104.92 | P26: 786900
A27: composição | B27: 2.6 | D27: Fornecimento e instalação de Revestimento do Poço em Tubo PVC Geomecânico STD em DN de 6" com luvas e rosca. | E27: m | F27: =F25 -> 4000 | J27: 2.6 | K27: 116.2 | L27: Fornecimento e instalação de Revestimento do Poço em Tubo PVC Geomecânico STD em DN de 6" com luvas e rosca. | M27: m | N27: 1500 | O27: 116.2 | P27: 174300
A28: composição | B28: 2.7 | D28: Cimentação anelar do poço, com argamassa de cimento e areia produzida no traço 1:3. | E28: m³ | F28: =(E11*10*3.1416*(0.1016*0.1016-0.0762*0.0762)+50*F40*3.1416*(0.0762*0.0762-0.0508*0.0508)) -> 66.89 | J28: 2.7 | K28: 426.44 | L28: Cimentação anelar do poço, com argamassa de cimento e areia produzida no traço 1:3. | M28: m³ | N28: 31.42 | O28: 426.44 | P28: 13398.74
A29: composição | B29: 2.8 | D29: Realização de limpeza do poço, realizado mediante a utilização de compressor de ar pelo método de fluxo e refluxo, incluindo operação e a instalação de compressor de ar, em conformidade com a NBR 12244. | E29: un | F29: =E11 -> 400 | J29: 2.8 | K29: 102.73 | L29: Realização de limpeza do poço, realizado mediante a utilização de compressor de ar pelo método de fluxo e refluxo, incluindo operação e a instalação de compressor de ar, em conformidade com a NBR 12244. | M29: un | N29: 150 | O29: 102.73 | P29: 15409.5
A30: composição | B30: 2.9 | D30: Realização de desenvolvimento e estimulação do poço, realizado mediante a utilização de compressor de ar pelo método de fluxo e refluxo, incluindo operação e a instalação de compressor de ar, em conformidade com a NBR12244. | E30: un | F30: =E11 -> 400 | J30: 2.9 | K30: 102.73 | L30: Realização de desenvolvimento e estimulação do poço, realizado mediante a utilização de compressor de ar pelo método de fluxo e refluxo, incluindo operação e a instalação de compressor de ar, em conformidade com a NBR12244. | M30: un | N30: 150 | O30: 102.73 | P30: 15409.5
A31: composição | B31: 2.10 | D31: Fornecimento e instalação de Cap fêmea de ponta de tubo de 6", para impedir contaminação do poço, inclusive anel de vedação e borracha. | E31: un | F31: =F22 -> 400 | J31: 2.10 | K31: 113.58 | L31: Fornecimento e instalação de Cap fêmea de ponta de tubo de 6", para impedir contaminação do poço, inclusive anel de vedação e borracha. | M31: un | N31: 150 | O31: 113.58 | P31: 17037
A32: composição | B32: 2.11 | D32: Realização de desinfecção do poço, incluindo material de limpeza, instalação e desinstalação de compressor, combustível e operador. | E32: un | F32: =E11 -> 400 | J32: 2.11 | K32: 72.65 | L32: Realização de desinfecção do poço, incluindo material de limpeza, instalação e desinstalação de compressor, combustível e operador. | M32: un | N32: 150 | O32: 72.65 | P32: 10897.5
A33: composição | B33: 2.12 | D33: Realização de análise físico-química e bacteriológica da água em conformidade com a NR 518, incluindo a coleta, taxas e transporte. | E33: un | F33: =E11 -> 400 | J33: 2.12 | K33: 320.24 | L33: Realização de análise físico-química e bacteriológica da água em conformidade com a NR 518, incluindo a coleta, taxas e transporte. | M33: un | N33: 150 | O33: 320.24 | P33: 48036
A34: composição | B34: 2.13 | D34: Realização de teste de vazão e de bombeamento do poço, incluindo operação e instalação de motobomba submersa e grupo gerador eletrico, em conformidade com a NBR 12244. | E34: un | F34: =E11 -> 400 | J34: 2.13 | K34: 731.68 | L34: Realização de teste de vazão e de bombeamento do poço, incluindo operação e instalação de motobomba submersa e grupo gerador eletrico, em conformidade com a NBR 12244. | M34: un | N34: 150 | O34: 731.68 | P34: 109752
A35: composição | B35: 2.14 | D35: Obtenção junto aos órgãos competente da Outorga de funcionamento e uso de recursos hídricos - CPRH/PE. | E35: un | F35: =E11 -> 400 | J35: 2.14 | K35: 1429.2 | L35: Obtenção junto aos órgãos competente da Outorga de funcionamento e uso de recursos hídricos - CPRH/PE. | M35: un | N35: 150 | O35: 1429.2 | P35: 214380
A36: composição | B36: 2.15 | D36: Construção de laje de proteção sanitária em concreto armado para qualquer tipo de estrutura, FCK = 15 Mpa, virado em betoneira na obra, incluindo aplicação e adensamento, forma, escoramento e ferragens, nas dimensões-1,0m x 1,0m x 0,15m, com declividade de 2% em relação ao centro do poço para as bordas, em conformidade com a NBR 12244. | E36: m³ | F36: =E11*0.15 -> 60 | J36: 2.15 | K36: 596.13 | L36: Construção de laje de proteção sanitária em concreto armado para qualquer tipo de estrutura, FCK = 15 Mpa, virado em betoneira na obra, incluindo aplicação e adensamento, forma, escoramento e ferragens, nas dimensões-1,0m x 1,0m x 0,15m, com declividade de 2% em relação ao centro do poço para as bordas, em conformidade com a NBR 12244. | M36: m³ | N36: 22.5 | O36: 596.13 | P36: 13412.93
A37: composição | B37: 2.16 | D37: Fornecimento e instalação de Pré-filtro preenchido com material quartzoso previamente lavado, peneirado e selecionado com granulometria variável de 2 - 4 mm em conformidade com NBR 12244. | E37: m³ | F37: =F39*3.1416*(0.0762*0.0762-0.0508*0.0508) -> 2.03 | J37: 2.16 | K37: 1413.29 | L37: Fornecimento e instalação de Pré-filtro preenchido com material quartzoso previamente lavado, peneirado e selecionado com granulometria variável de 2 - 4 mm em conformidade com NBR 12244. | M37: m³ | N37: 2.03 | O37: 1413.29 | P37: 2868.98
A38: composição | B38: 2.17 | D38: Fornecimento e instalação de Tubo PVC Geo mecanico STD DN de 4" com luvas e rosca. | E38: m | F38: =20*50 -> 1000 | J38: 2.17 | K38: 66.77 | L38: Fornecimento e instalação de Tubo PVC Geo mecanico STD DN de 4" com luvas e rosca. | M38: m | N38: 1000 | O38: 66.77 | P38: 66770
A39: composição | B39: 2.18 | D39: Fornecimento e instalação de Filtro Geo mecanico STD DN de 4" com luvas e rosca. | E39: m | F39: =20*10 -> 200 | J39: 2.18 | K39: 55.97 | L39: Fornecimento e instalação de Filtro Geo mecanico STD DN de 4" com luvas e rosca. | M39: m | N39: 200 | O39: 55.97 | P39: 11194
A40: composição | B40: 2.19 | D40: Fornecimento e instalação de Cap PVC geomecânico STD. em DN 4" para vedação do fundo do filtro, inclusive anel de vedação e borracha. | E40: un | F40: 20 | J40: 2.19 | K40: 55.73 | L40: Fornecimento e instalação de Cap PVC geomecânico STD. em DN 4" para vedação do fundo do filtro, inclusive anel de vedação e borracha. | M40: un | N40: 20 | O40: 55.73 | P40: 1114.6
B41: 4 | D41: Poços Cristalinos - Montagem e Instalação com bomba submersa. | J41: =H41/75 -> 0
A42: composição | B42: 4.1 | D42: Fornecimento e assentamento de tubos e conexões em PVC tipo Edutor, azul, Diâmetro Nominal de 50 mm (interligação do poço à caixa do reservatório). | E42: m | F42: =E13*30 -> 5400
A43: composição | B43: 4.2 | D43: Fornecimento, montagem e instalação de poço profundo tubular com diâmetro de 6", incluindo conjunto motor-bomba submersa e peças, diâmetro da tubulação de recalque de até 2", profundidade da bomba entre 40 m e 56 m, inclusive rede elétrica do quadro de comando à bomba. | E43: un | F43: =E13 -> 180
A44: composição | B44: 4.3 | D44: Limpeza do terreno - Raspagem e limpeza manual do terreno com destocamento de arvore até 15cm (área de bebedouro e do reservatório). | E44: m² | F44: =(E13)*10.25 -> 1845
A45: composição | B45: 4.4 | D45: Escavação manual de vala de fundação em material de 1 e 2ª categoria, com dimensões de 0,40 m (prof.) x 0,30 m (larg.), incluindo regularização manual do fundo da vala (reservatório ao bebedouro). | E45: m³ | F45: =E13*20*0.4*0.3 -> 432
A46: composição | B46: 4.5 | D46: Aterro manual de valas de fundação com 0,40 m de profundidade, 0,30 m largura, com avaliação visual da compactação (reservatório ao bebedouro). | E46: m³ | F46: =F45-(3.1416*0.016*0.016*20*E3) -> 432
A47: composição | B47: 4.6 | D47: Escavação manual de vala de fundação para instalação de tubulação de adutora em material de 1ª e 2ª categoria, com dimensões de 0,40 m (prof.) x 0,30 m (larg.), incluindo regularização manual do fundo da vala (poço ao reservatório). | E47: m³ | F47: =F42*0.4*0.3 -> 648
A48: composição | B48: 4.7 | D48: Aterro manual de valas de fundação com 0,40 m de profundidade, 0,30 m de largura, com avaliação visual da compactação (poço ao reservatório). | E48: m³ | F48: =F47-(3.1416*0.025*0.025*30*E13) -> 637.4
A49: composição | B49: 4.8 | D49: Fornecimento e assentamento de tubos e conexões em PVC, marrom, diâmetros de 32mm, soldável. | E49: m | F49: =E13*20 -> 3600
A50: composição | B50: 4.9 | D50: Fornecimento e instalação de caixa d'água de fibra de 5m³, sobre base de concreto armado, incluído tubulação de dreno, lavagem e ladrão. | E50: un | F50: =E13 -> 180
A51: composição | B51: 4.10 | D51: Fornecimento e montagem de cerca de proteção construída com mourões de concreto armado (H=2,5 m), com ponta virada e com 11 fios de arame farpado, incluindo chumbamento e arame de fixação. | E51: m | F51: =E13*14.7 -> 2646
A52: composição | B52: 4.11 | D52: Fornecimento, montagem e instalação de portão de ferro tubular, tela em aço galvanizado, dobradiças e fechadura para passagem de pedestre, medindo 1,80m x 1,10m, incluindo mourão de sustentação. | E52: un | F52: =E13 -> 180
A53: composição | B53: 4.12 | D53: Execução de bebedouro em concreto armado, incluindo a instalação hidráulica. | E53: un | F53: =E13 -> 180
A54: composição | B54: 4.13 | D54: Execução de base de sustentação do reservatório em concreto armado, diâmetro de 2,06 m e altura de 1,10 m, conforme projeto. | E54: un | F54: =E13 -> 180
B55: 4.1 | D55: Instalações Eletricas - Poços Cristalinos
A56: composição | B56: 4.1.1 | D56: Elaboração de projeto de rede elétrica de baixa tensão, incluído aprovação junto a concessionária. | E56: m | F56: =E13*200 -> 36000
A57: composição | B57: 4.1.2 | D57: Execução de rede elétrica de baixa tensão - cabo de alumínio de 25 mm² (3+1). | E57: m | F57: =E13*200 -> 36000
A58: composição | B58: 4.1.3 | D58: Poste de Concreto (fornecimento e instalação) | E58: un | F58: =E13*5 -> 900
A59: composição | B59: 4.1.4 | D59: Estrutura IM-A (fornecimento e instalação) | E59: un | F59: =E13*3 -> 540
A60: composição | B60: 4.1.5 | D60: Estrutura IM-1 (fornecimento e instalação) | F60: =E13*2 -> 360
A61: composição | B61: 4.1.6 | D61: Fornecimento e montagem de quadro de medição no padrão CELPE para 3 ou 4 fios, inclusive haste de aterramento, condutores, conectores, eletroduto, disjuntor, caixa para disjuntor, bucha, arruela e tubo. | E61: un | F61: =E13 -> 180
A62: composição | B62: 4.1.7 | D62: Abrigo de proteção em concreto armado para quadro de comando de bomba. | E62: un | F62: =E13 -> 180
B63: 5 | D63: Poços Cristalinos - Montagem e Instalação com cata-vento. | J63: =H63/75 -> 0
A64: composição | B64: 5.1 | D64: Fornecimento e assentamento de tubos e conexões em PVC tipo Edutor, azul, Diâmetro Nominal de 50 mm (interligação do poço à caixa do reservatório). | E64: m | F64: =F13*30 -> 6600 | I64: =M64 -> 21.53 | J64: Fornecimento e assentamento de tubos e conexões em PVC tipo Edutor, azul, Diâmetro Nominal de 50 mm (interligação do poço à caixa do reservatório). | K64: m | L64: 2250 | M64: 21.53 | N64: 48442.5
A65: composição | B65: 5.2 | D65: Fornecimento, montagem e instalação de poço profundo tubular com diâmetro de 6", com cata-vento de base triangular, diâmetro da tubulação 1 1/4", profundidade do injetor entre 40m e 56m, incluindo fixação da torre sobre base de concreto no traço 1:2:3. | E65: un | F65: =F13 -> 220 | I65: =M65 -> 11262.22 | J65: Fornecimento, montagem e instalação de poço profundo tubular com diâmetro de 6", com cata-vento de base triangular, diâmetro da tubulação 1 1/4", profundidade do injetor entre 40m e 56m, incluindo fixação da torre sobre base de concreto no traço 1:2:3. | K65: un | L65: 75 | M65: 11262.22 | N65: 844666.5
A66: composição | B66: 5.3 | D66: Limpeza do terreno - Raspagem e limpeza manual do terreno com destocamento de arvore até 15cm (área de bebedouro e do reservatório). | E66: m² | F66: =(F13)*10.25 -> 2255 | I66: 2.98 | J66: Limpeza do terreno - Raspagem e limpeza manual do terreno com destocamento de arvore até 15cm (área de bebedouro e do reservatório). | K66: m² | L66: 768.75 | M66: 2.98 | N66: 2290.88
A67: composição | B67: 5.4 | D67: Escavação manual de vala de fundação em material de 1 e 2ª categoria, com dimensões de 0,40 m (prof.) x 0,30 m (larg.), incluindo regularização manual do fundo da vala (reservatório ao bebedouro). | E67: m³ | F67: =F13*20*0.4*0.3 -> 528 | I67: =M67 -> 18.92 | J67: Escavação manual de vala de fundação em material de 1 e 2ª categoria, com dimensões de 0,40 m (prof.) x 0,30 m (larg.), incluindo regularização manual do fundo da vala (reservatório ao bebedouro). | K67: m³ | L67: 180 | M67: 18.92 | N67: 3405.6
A68: composição | B68: 5.5 | D68: Aterro manual de valas de fundação com 0,40 m de profundidade, 0,30 m largura, com avaliação visual da compactação (reservatório ao bebedouro). | E68: m³ | F68: =F67-(3.1416*0.016*0.016*20*F13) -> 524.46 | I68: 16.93 | J68: Aterro manual de valas de fundação com 0,40 m de profundidade, 0,30 m largura, com avaliação visual da compactação (reservatório ao bebedouro). | K68: m³ | L68: 178.79 | M68: 16.93 | N68: 3026.91
A69: composição | B69: 5.6 | D69: Escavação manual de vala de fundação para instalação de tubulação de adutora em material de 1ª e 2ª categoria, com dimensões de 0,40 m (prof.) x 0,30 m (larg.), incluindo regularização manual do fundo da vala (poço ao reservatório). | E69: m³ | F69: =F64*0.4*0.3 -> 792 | I69: =M69 -> 18.92 | J69: Escavação manual de vala de fundação para instalação de tubulação de adutora em material de 1ª e 2ª categoria, com dimensões de 0,40 m (prof.) x 0,30 m (larg.), incluindo regularização manual do fundo da vala (poço ao reservatório). | K69: m³ | L69: 270 | M69: 18.92 | N69: 5108.4
A70: composição | B70: 5.7 | D70: Aterro manual de valas de fundação com 0,40 m de profundidade, 0,30 m de largura, com avaliação visual da compactação (poço ao reservatório). | E70: m³ | F70: =F69-(3.1416*0.025*0.025*30*F13) -> 779.04 | I70: 16.93 | J70: Aterro manual de valas de fundação com 0,40 m de profundidade, 0,30 m de largura, com avaliação visual da compactação (poço ao reservatório). | K70: m³ | L70: 265.58 | M70: 16.93 | N70: 4496.27
A71: composição | B71: 5.8 | D71: Fornecimento e assentamento de tubos e conexões em PVC, marrom, diâmetros de 32mm, soldável. | E71: m | F71: =F13*20 -> 4400 | I71: =M71 -> 11.58 | J71: Fornecimento e assentamento de tubos e conexões em PVC, marrom, diâmetros de 32mm, soldável. | K71: m | L71: 1500 | M71: 11.58 | N71: 17370
A72: composição | B72: 5.9 | D72: Fornecimento e instalação de caixa d'água de fibra de 5m³, sobre base de concreto armado, incluído tubulação de dreno, lavagem e ladrão. | E72: un | F72: =F13 -> 220 | I72: 2360.17 | J72: Fornecimento e instalação de caixa d'água de fibra de 5m³, sobre base de concreto armado, incluído tubulação de dreno, lavagem e ladrão. | K72: un | L72: 75 | M72: 2360.17 | N72: 177012.75
A73: composição | B73: 5.10 | D73: Fornecimento e montagem de cerca de proteção construída com mourões de concreto armado (H=2,5 m), com ponta virada e com 11 fios de arame farpado, incluindo chumbamento e arame de fixação. | E73: m | F73: =F13*14.7 -> 3234 | I73: 48.05 | J73: Fornecimento e montagem de cerca de proteção construída com mourões de concreto armado (H=2,5 m), com ponta virada e com 11 fios de arame farpado, incluindo chumbamento e arame de fixação. | K73: m | L73: 1102.5 | M73: 48.05 | N73: 52975.13
A74: composição | B74: 5.11 | D74: Fornecimento, montagem e instalação de portão de ferro tubular, tela em aço galvanizado, dobradiças e fechadura para passagem de pedestre, medindo 1,80m x 1,10m, incluindo mourão de sustentação. | E74: un | F74: =F13 -> 220 | I74: =M74 -> 807.94 | J74: Fornecimento, montagem e instalação de portão de ferro tubular, tela em aço galvanizado, dobradiças e fechadura para passagem de pedestre, medindo 1,80m x 1,10m, incluindo mourão de sustentação. | K74: un | L74: 75 | M74: 807.94 | N74: 60595.5
A75: composição | B75: 5.12 | D75: Execução de bebedouro em concreto armado, incluindo a instalação hidráulica. | E75: un | F75: =F13 -> 220 | I75: 910.41 | J75: Execução de bebedouro em concreto armado, incluindo a instalação hidráulica. | K75: un | L75: 75 | M75: 910.41 | N75: 68280.75
A76: composição | B76: 5.13 | D76: Execução de base de sustentação do reservatório em concreto armado, diâmetro de 2,06 m e altura de 1,10 m, conforme projeto. | E76: un | F76: =F13 -> 220 | I76: =M76 -> 1505.07 | J76: Execução de base de sustentação do reservatório em concreto armado, diâmetro de 2,06 m e altura de 1,10 m, conforme projeto. | K76: un | L76: 75 | M76: 1505.07 | N76: 112880.25
J78: cristalino
J79: bomba | L79: catavento
J80: =SUM(#REF!+J21+J41) ->  | L80: =SUM(#REF!+J21+J63) -> 
J81: perfuração | K81: instalação | L81: perfuração | M81: instalação
J82: =J80-J41 ->  | K82: =J80-J82 ->  | L82: =L80-J63 ->  | M82: =L80-L82 -> 
J84: sedimentar | K84: Perfuração | L84: =J85-#REF! -> 
J85: =#REF!+#REF!+#REF! ->  | K85: Instalação | L85: =#REF! -> 
J86: geral
J87: =#REF!/(#REF!+G11) -> 

Sheet CPU POÇOS (hidden)
B2: CODEVASF | C2: 4.13 | D2: COMPOSIÇÃO DE PREÇO UNITÁRIO
B3: OBRA: Perfuração e Instalação de Poços Tubulares. | H3: DATA: Abril/2012
B4: SERVIÇO : Elaboração de projeto e execução de rede elétrica de baixa tensão, extensão media de 200m, com cabo de aluminio de 25mm² (3+1). | H4: UNIDADE: | I4: un
B5: EQUIPAMENTO | K5: poste | L5: rede | M5: projeto
B6: DISCRIMINAÇÃO | C6: UNID. | D6: QUANT. | E6: PROD | F6: IMPROD | G6: P.UNIT. PROD | H6: P.UNIT. IMPR | I6: P.TOTAL
B7: GUINCHO TIPO MUNCK CAP * 6T * MONTADO EM CAMINHAO CARROCERIA, OU EQUIV SINAPI 3356 | C7: h | D7: 4 | E7: 1 | G7: 148.5 | I7: =D7*E7*G7+D7*F7*H7 -> 594 | M7: =I7 -> 594
B8: SUB-TOTAL | I8: =SUM(I7:I7) -> 594 | K8: =SUM(K7:K7) -> 0 | L8: =SUM(L7:L7) -> 0 | M8: =SUM(M7:M7) -> 594
B9: MATERIAL
B10: DISCRIMINAÇÃO | C10: UNID. | D10: QUANT. | H10: P.UNIT. | I10: P.TOTAL
B11: Cabo de aluminio 0,6/1kv multiplexados 1x1x16 +16mm² | C11: m | D11: 220 | E11: ORSE | F11: 2633 | H11: 2.15 | I11: =ROUND(D11*H11,2) -> 473 | L11: =I11 -> 473
B12: POSTE DE CONCRETO DUPLO T, 100KG, H = 8M DE ACORDO COM NBR 8451 | C12: un | D12: 4 | E12: SINAPI | F12: 13334 | H12: 228.33 | I12: =ROUND(D12*H12,2) -> 913.32 | K12: =I12 -> 913.32
B13: SUB-TOTAL | I13: =SUM(I11:I12) -> 1386.32 | K13: =SUM(K11:K12) -> 913.32 | L13: =SUM(L11:L12) -> 473 | M13: =SUM(M11:M12) -> 0
B14: SERVIÇOS - COMPOSIÇÕES AUXILIARES
B15: DISCRIMINAÇÃO | C15: UNID. | D15: QUANT. | H15: P.UNIT. | I15: P.TOTAL
I16: =D16*H16 -> 0
I17: =SUM(I16:I16) -> 0
B18: MÃO DE OBRA
B19: DISCRIMINAÇÃO | C19: UNID. | D19: QUANT. | H19: P.UNIT. | I19: P.TOTAL
B20: Engenheiro elétrico júnior | C20: mês | D20: 0.05 | H20: 5286.69 | I20: =ROUND(D20*H20,2) -> 264.33 | M20: =I20 -> 264.33
B21: Cadista. | C21: mês | D21: 0.05 | H21: 1973.76 | I21: =ROUND(D21*H21,2) -> 98.69 | M21: =I21 -> 98.69
B22: Topografo. | C22: h | D22: 5 | H22: 5.97 | I22: 29.85 | M22: =I22 -> 29.85
B23: Auxiliar de topografia. | C23: h | D23: 22.65 | H23: 1.99 | I23: 45.07 | M23: =I23 -> 45.07
B24: Eletricista montador. | C24: h | D24: 8 | H24: 4.11 | I24: 32.88 | L24: =I24 -> 32.88
B25: Auxiliar prático | C25: h | D25: 13 | H25: 3.38 | I25: 43.94 | L25: =I25 -> 43.94
B26: Servente. | C26: h | D26: 13 | H26: 3.09 | I26: 40.17 | K26: =I26 -> 40.17
B27: Leis Sociais: 127,96 % | I27: =SUM(I20:I26)*1.2796 -> 710.09 | K27: =SUM(K20:K26)*1.2796 -> 51.4 | L27: =SUM(L20:L26)*1.2796 -> 98.3 | M27: =SUM(M20:M26)*1.2796 -> 560.39
B28: SUB-TOTAL | I28: =SUM(I20:I27) -> 1265.02 | K28: =SUM(K20:K27) -> 91.57 | L28: =SUM(L20:L27) -> 175.12 | M28: =SUM(M20:M27) -> 998.33
B29: PRODUÇÃO DA EQUIPE | C29: 1 | D29: CUSTO | I29: =I28+I17+I13+I8 -> 3245.34 | K29: =K28+K17+K13+K8 -> 1004.89 | L29: =L28+L17+L13+L8 -> 648.12 | M29: =M28+M17+M13+M8 -> 1592.33
I30: =I29/C29 -> 3245.34 | K30: =K29/C29 -> 1004.89 | L30: =L29/C29 -> 648.12 | M30: =M29/C29 -> 1592.33
B31: BDI | C31: 22.5 | D31: % | I31: =C31/100*I30 -> 730.2 | K31: =C31/100*K30 -> 226.1 | L31: =C31/100*L30 -> 145.83 | M31: =C31/100*M30 -> 358.27
B32: TOTAL DO SERVIÇO - R$ | I32: =SUM(I30:I31) -> 3975.54 | K32: =SUM(K30:K31) -> 1230.99 | L32: =SUM(L30:L31) -> 793.95 | M32: =SUM(M30:M31) -> 1950.6
B40: CODEVASF | C40: 6.1 | D40: COMPOSIÇÃO DE PREÇO UNITÁRIO
B41: OBRA: Perfuração e Instalação de Poços Tubulares. | H41: DATA: Abril/2012
B42: SERVIÇO : Elaboração de projeto e execução de rede elétrica de baixa tensão, extensão = 250m, segundo padrão CELPE com capacidade de suportar a carga do equipamento instalado. O projeto devera ser aprovado pela CELPE. | H42: UNIDADE: | I42: un | J42: 184852
B43: EQUIPAMENTO | K43: poste | L43: rede | M43: projeto
B44: DISCRIMINAÇÃO | C44: UNID. | D44: QUANT. | E44: PROD | F44: IMPROD | G44: P.UNIT. PROD | H44: P.UNIT. IMPR | I44: P.TOTAL
B45: GUINCHO TIPO MUNCK CAP * 6T * MONTADO EM CAMINHAO CARROCERIA, OU EQUIV SINAPI 3356 | C45: h | D45: 4 | E45: 1 | G45: 148.5 | I45: =D45*E45*G45+D45*F45*H45 -> 594 | M45: =I45 -> 594
B46: SUB-TOTAL | I46: =SUM(I45:I45) -> 594 | K46: =SUM(K45:K45) -> 0 | L46: =SUM(L45:L45) -> 0 | M46: =SUM(M45:M45) -> 594
B47: MATERIAL
B48: DISCRIMINAÇÃO | C48: UNID. | D48: QUANT. | H48: P.UNIT. | I48: P.TOTAL
B49: Cabo de aluminio 0,6/1kv multiplexados 1x1x16 +16mm² | C49: m | D49: 275 | E49: ORSE | F49: 2633 | H49: 2.15 | I49: =ROUND(D49*H49,2) -> 591.25 | L49: =I49 -> 591.25
B50: POSTE DE CONCRETO DUPLO T, 100KG, H = 8M DE ACORDO COM NBR 8451 | C50: un | D50: 4 | E50: SINAPI | F50: 13334 | H50: 228.33 | I50: =ROUND(D50*H50,2) -> 913.32 | K50: =I50 -> 913.32
B51: SUB-TOTAL | I51: =SUM(I49:I50) -> 1504.57 | K51: =SUM(K49:K50) -> 913.32 | L51: =SUM(L49:L50) -> 591.25 | M51: =SUM(M49:M50) -> 0
B52: SERVIÇOS - COMPOSIÇÕES AUXILIARES
B53: DISCRIMINAÇÃO | C53: UNID. | D53: QUANT. | H53: P.UNIT. | I53: P.TOTAL
I54: =D54*H54 -> 0
I55: =SUM(I54:I54) -> 0
B56: MÃO DE OBRA
B57: DISCRIMINAÇÃO | C57: UNID. | D57: QUANT. | H57: P.UNIT. | I57: P.TOTAL
B58: Engenheiro elétrico júnior | C58: mês | D58: 0.05 | H58: 5286.69 | I58: =ROUND(D58*H58,2) -> 264.33 | M58: =I58 -> 264.33
B59: Cadista | C59: mês | D59: 0.05 | H59: 1973.76 | I59: 98.69 | M59: =I59 -> 98.69
B60: Topografo | C60: h | D60: 5 | H60: 5.97 | I60: 29.85 | M60: =I60 -> 29.85
B61: Auxiliar de topografia | C61: h | D61: 22.65 | H61: 1.99 | I61: 45.07 | M61: =I61 -> 45.07
B62: Eletricista montador | C62: h | D62: 8 | H62: 4.11 | I62: 32.88 | L62: =I62 -> 32.88
B63: Auxiliar prático | C63: h | D63: 13 | H63: 3.38 | I63: 43.94 | L63: =I63 -> 43.94
B64: Servente | C64: h | D64: 13 | H64: 3.09 | I64: 40.17 | K64: =I64 -> 40.17
B65: Leis Sociais: 127,96 % | I65: =SUM(I58:I64)*1.2796 -> 710.09 | K65: =SUM(K58:K64)*1.2796 -> 51.4 | L65: =SUM(L58:L64)*1.2796 -> 98.3 | M65: =SUM(M58:M64)*1.2796 -> 560.39
B66: SUB-TOTAL | I66: =SUM(I58:I65) -> 1265.02 | K66: =SUM(K58:K65) -> 91.57 | L66: =SUM(L58:L65) -> 175.12 | M66: =SUM(M58:M65) -> 998.33
B67: PRODUÇÃO DA EQUIPE | C67: 1 | D67: CUSTO | I67: =I66+I55+I51+I46 -> 3363.59 | K67: =K66+K55+K51+K46 -> 1004.89 | L67: =L66+L55+L51+L46 -> 766.37 | M67: =M66+M55+M51+M46 -> 1592.33
I68: =I67/C67 -> 3363.59 | K68: =K67/C67 -> 1004.89 | L68: =L67/C67 -> 766.37 | M68: =M67/C67 -> 1592.33
B69: BDI | C69: 22.5 | D69: % | I69: =C69/100*I68 -> 756.81 | K69: =C69/100*K68 -> 226.1 | L69: =C69/100*L68 -> 172.43 | M69: =C69/100*M68 -> 358.27
B70: TOTAL DO SERVIÇO - R$ | I70: =SUM(I68:I69) -> 4120.4 | K70: =SUM(K68:K69) -> 1230.99 | L70: =SUM(L68:L69) -> 938.8 | M70: =SUM(M68:M69) -> 1950.6
B77: COMPOSIÇÃO PARA ESTRUTURA IM-1
B78: DISCRIMINAÇÃO | C78: CÓDIGO CELPE | D78: CÓDIGO | E78: FONTE | F78: UNID. | G78: QUANT. | H78: P.UNIT. | I78: P.TOTAL
B79: Arruela quadrada aço 38 F18,00 | C79: A-2 | D79: 379 | E79: SINAPI | F79: unid. | G79: 1 | H79: 2.06 | I79: =ROUND(G79 * H79,2) -> 2.06
B80: Fita isolante preta 19x20mm (Fase A) | C80: A-15-3 | D80: 20111 | E80: SINAPI | F80: unid. | G80: =0.25 /20 -> 0.0125 | H80: 5 | I80: =ROUND(G80 * H80,2) -> 0.06
B81: Fita isol. EPR Autofusão preta 19mm x 10m | C81: A-15-6 | D81: 2643 | E81: ORSE | F81: unid. | G81: =0.25 / 10 -> 0.025 | H81: =11/1.387 -> 7.93 | I81: 0.2
B82: Sapatilha cabo 9,5mm | C82: A-25 | D82: 2007 | E82: ORSE | F82: unid. | G82: 1 | H82: =1.32/1.387 -> 0.95 | I82: 0.95
B83: Cabo de cobre nu 2 AWG | C83: C-7 | D83: 3249 | E83: ORSE | F83: kg | G83: 2.75 | H83: =41.69/1.387 -> 30.06 | I83: 82.67
B84: Fio cobre 750 V 1,50 PT (Nota 1) | C84: C-8 | D84: 938 | E84: SINAPI | F84: m | G84: 0.5 | H84: 0.71 | I84: 0.36
B85: Haste terra cobre 16x2400mm | C85: F-17 | D85: 3383 | E85: SINAPI | F85: unid. | G85: 1 | H85: 23.97 | I85: 23.97
B86: Olhal parafuso 5000 daN | C86: F-25 | D86: 421 | E86: SINAPI | F86: unid. | G86: 1 | H86: 12.9 | I86: 12.9
B87: Conector atr aço reta 35,0/HA 16,0mm² | C87: O-4 | D87: 425 | E87: SINAPI | F87: unid. | G87: 1 | H87: 2.72 | I87: 2.72
B88: Conector cunha est. Cinza | C88: O-8-1 | D88: 10624 | E88: ORSE | F88: unid. | G88: 1 | H88: =2.43/1.387 -> 1.75 | I88: 1.75
B89: Alça pref serv AL AS 25mm2 | C89: M-3 | D89: 417 | E89: SINAPI | F89: unid. | G89: 1 | H89: 2.53 | I89: 2.53
B90: Grampo aço fita ¾” | C90: M-6 | D90: 9961 | E90: ORSE | F90: unid. | G90: 1 | H90: =0.77/1.387 -> 0.56 | I90: 0.56
B91: Fita de aço inoxidável 19mmx30m | C91: M-7 | D91: 406 | E91: SINAPI | F91: unid. | G91: =0.6 / 30 -> 0.02 | H91: 27.49 | I91: 0.55
B92: Parafuso cabeça quadrada galv. M-16 (200 mm) | C92: F-30 | D92: 431 | E92: SINAPI | F92: unid. | G92: 1 | H92: 6.69 | I92: 6.69
B93: Valor Total | I93: =SUM(I79:I92) -> 137.97
B94: BDI | C94: 22.5 | D94: % | I94: =C94/100*I93 -> 31.04
B95: TOTAL - R$ | I95: =SUM(I93:I94) -> 169.01
B100: COMPOSIÇÃO PARA ESTRUTURA IM-A
B101: DISCRIMINAÇÃO | C101: CÓDIGO CELPE | D101: CÓDIGO | E101: FONTE | F101: UNID. | G101: QUANT. | H101: P.UNIT. | I101: P.TOTAL
B102: Arruela quadrada aço 38 F18,00 | C102: A-2 | D102: 379 | E102: SINAPI | F102: unid. | G102: 1 | H102: 2.06 | I102: =ROUND(G102 * H102,2) -> 2.06
B103: Fita isolante preta 19x20mm (Fase A) | C103: A-15-3 | D103: 20111 | E103: SINAPI | F103: unid. | G103: =0.25 /20 -> 0.0125 | H103: 5 | I103: 0.06
B104: Armação secundária aço 1 estribo c/haste | C104: F-3-1 | D104: 1094 | E104: SINAPI | F104: unid. | G104: 1 | H104: 9.06 | I104: 9.06
B105: Isolador roldana porcelana R-1350-2 | C105: I-3 | D105: 3398 | E105: SINAPI | F105: unid. | G105: 1 | H105: 5.52 | I105: 5.52
B106: Laço preformado roldana | C106: M-13 | D106: 417 | E106: SINAPI | F106: unid. | G106: 1 | H106: 2.53 | I106: 2.53
B107: Parafuso cabeça quadrada galv. M-16 (200 mm) | C107: F-30 | D107: 431 | E107: SINAPI | F107: unid. | G107: 1 | H107: 6.69 | I107: 6.69
B108: Valor Total | I108: =SUM(I102:I107) -> 25.92
B109: BDI | C109: 22.5 | D109: % | I109: =C109/100*I108 -> 5.83
B110: TOTAL - R$ | I110: =SUM(I108:I109) -> 31.75

Sheet DESLOCAMENTOS (hidden)
A1: CIDADE | B1: PERFURAÇÃO | C1: INSTALAÇÃO | D1: TOTAL | E1: RODOVIÁRIO | F1: VICINAL | G1: TEMPO UNITÁRIO | H1: TEMPO TOTAL
A2: AFRÂNIO | B2: 2 | D2: =B2+C2 -> 2 | E2: 106 | F2: 20 | G2: =(2*E2)/60+(2*F2)/40 -> 4.53 | H2: =G2*D2 -> 9.06
A3: ARARIPINA | B3: 4 | C3: 2 | D3: =B3+C3 -> 6 | E3: 271 | F3: 20 | G3: =(2*E3)/60+(2*F3)/40 -> 10.03 | H3: =G3*D3 -> 60.18
A4: BODOCÓ | B4: 14 | D4: 14 | E4: 250 | F4: 20 | G4: 9.33 | H4: 130.62
A5: CABROBÓ | B5: 7 | C5: 1 | D5: 8 | E5: 182 | F5: 20 | G5: 7.07 | H5: 56.56
A6: CEDRO | B6: 3 | D6: 3 | E6: 300 | F6: 20 | G6: 11 | H6: 33
A7: DORMENTES | B7: 3 | C7: 4 | D7: 7 | E7: 152 | F7: 20 | G7: 6.07 | H7: 42.49
A8: EXU | B8: 20 | D8: 20 | E8: 280 | F8: 20 | G8: 10.33 | H8: 206.6
A9: GRANITO | B9: 14 | C9: 10 | D9: 24 | E9: 275 | F9: 20 | G9: 10.17 | H9: 244.08
A10: IPUBI | B10: 1 | D10: 1 | E10: 255 | F10: 20 | G10: 9.5 | H10: 9.5
A11: LAGOA GRANDE | B11: 8 | C11: 1 | D11: 9 | E11: 47 | F11: 20 | G11: 2.57 | H11: 23.13
A12: MIRANDIBA | B12: 8 | D12: 8 | E12: 312 | F12: 20 | G12: 11.4 | H12: 91.2
A13: MOREILÂNDIA | B13: 6 | D13: 6 | E13: 314 | F13: 20 | G13: 11.47 | H13: 68.82
A14: OROCÓ | B14: 4 | D14: 4 | E14: 144 | F14: 20 | G14: 5.8 | H14: 23.2
A15: OURICURI | B15: 17 | C15: 3 | D15: 20 | E15: 211 | F15: 20 | G15: 8.03 | H15: 160.6
A16: PARNAMIRIM | B16: 4 | C16: 1 | D16: 5 | E16: 184 | F16: 20 | G16: 7.13 | H16: 35.65
A17: PETROLINA | B17: 6 | C17: 8 | D17: 14 | E17: 0 | F17: 20 | G17: =(2*E17)/60+(2*F17)/40 -> 1 | H17: 14
A18: SALGUEIRO | B18: 2 | D18: 2 | E18: 235 | F18: 20 | G18: 8.83 | H18: 17.66
A19: SANTA CRUZ | B19: 2 | D19: 2 | E19: 158 | F19: 20 | G19: 6.27 | H19: 12.54
A20: SANTA FILOMENA | B20: 3 | D20: 3 | E20: 164 | F20: 20 | G20: 6.47 | H20: 19.41
A21: SANTA MARIA DA BOA VISTA | B21: 4 | C21: 1 | D21: 5 | E21: 107 | F21: 20 | G21: 4.57 | H21: 22.85
A22: SÃO JOSÉ DO BELMONTE | B22: 3 | D22: 3 | E22: 328 | F22: 20 | G22: 11.93 | H22: 35.79
A23: SERRITA | B23: 7 | D23: 7 | E23: 288 | F23: 20 | G23: 10.6 | H23: 74.2
A24: TERRA NOVA | B24: 3 | D24: 3 | E24: 219 | F24: 20 | G24: 8.3 | H24: 24.9
A25: VERDEJANTE | B25: 3 | D25: 3 | E25: 277 | F25: 20 | G25: =(2*E25)/60+(2*F25)/40 -> 10.23 | H25: =G25*D25 -> 30.69
D26: =SUM(D2:D25) -> 179 | H26: =SUM(H2:H25) -> 1446.73
G27: MÉDIA | H27: =H26/D26 -> 8.08

Sheet RESUMO (hidden)
A1: ct 066
A2: 4.13.1 | B2: poste | C2: unid | D2: =4*160 -> 640 | E2: ='CPU POÇOS'!K32/4 -> 307.75 | F2: =D2*E2 -> 196960
A3: 4.13.2 | B3: rede | C3: m | D3: =200*160 -> 32000 | E3: ='CPU POÇOS'!L32/200 -> 3.97 | F3: =D3*E3 -> 127040
A4: 4.13.3 | B4: projeto | C4: unid | D4: =1*160 -> 160 | E4: ='CPU POÇOS'!M32 -> 1950.6 | F4: =D4*E4 -> 312096
F5: =SUM(F2:F4) -> 636096
F6: 4880.68
F7: =F5/160 -> 3975.6
A8: ct 060
A9: 4.13.1 | B9: poste | C9: unid | D9: =4*61.25 -> 245 | E9: =E2 -> 307.75 | F9: =D9*E9 -> 75398.75
A10: 4.13.2 | B10: rede | C10: m | D10: =200*61.25 -> 12250 | E10: =E3 -> 3.97 | F10: =D10*E10 -> 48632.5
A11: 4.13.3 | B11: projeto | C11: unid | D11: =1*61.25 -> 61.25 | E11: =E4 -> 1950.6 | F11: =D11*E11 -> 119474.25
F12: =SUM(F9:F11) -> 243505.5
F13: 4880.68
F14: =F12/61.25 -> 3975.6
A16: ct 066
A17: 6.1.1 | B17: poste | C17: unid | D17: =5*10 -> 50 | E17: ='CPU POÇOS'!K70/5 -> 246.2 | F17: =D17*E17 -> 12310
A18: 6.1.2 | B18: rede | C18: m | D18: =250*10 -> 2500 | E18: ='CPU POÇOS'!L70/250 -> 3.76 | F18: =D18*E18 -> 9400
A19: 6.1.3 | B19: projeto | C19: unid | D19: =1*10 -> 10 | E19: ='CPU POÇOS'!M70 -> 1950.6 | F19: =D19*E19 -> 19506
F20: =SUM(F17:F19) -> 41216
F21: 5315.24
F22: =F20/10 -> 4121.6
J42: 184852
